bitfinex/quotes_BTCUSD_20250218
["timestamp","ask_amount","ask_price","bid_price","bid_amount"]
[1739906510543,0.5568624,93768.0,93767.0,3.9e-07]
[1739906510683,0.45435875,93768.0,93767.0,3.9e-07]
[1739906512770,0.30435875,93768.0,93767.0,3.9e-07]
[1739906512972,0.2104414,93768.0,93767.0,3.9e-07]
[1739906516181,0.22715847,93768.0,93767.0,3.9e-07]
[1739906516960,0.31385972,93768.0,93767.0,3.9e-07]
[1739906517168,0.22715847,93768.0,93767.0,3.9e-07]
[1739906520571,0.17857815,93768.0,93767.0,3.9e-07]
[1739906522871,0.16186108,93768.0,93767.0,3.9e-07]
[1739906523878,0.31186108,93768.0,93767.0,3.9e-07]
[1739906526754,0.31044799,93768.0,93767.0,3.9e-07]
[1739906526956,0.31203952,93768.0,93767.0,3.9e-07]
[1739906527337,0.32875691,93768.0,93767.0,3.9e-07]
[1739906528488,0.17875691,93768.0,93767.0,3.9e-07]
[1739906528933,0.01878791,93768.0,93767.0,3.9e-07]
[1739906529306,0.17875691,93768.0,93767.0,0.10380039]
[1739906529512,0.17875691,93768.0,93767.0,0.11418043]
[1739906530136,0.01878791,93768.0,93767.0,0.30385343]
[1739906530552,0.159955,93776.0,93768.0,0.173]
[1739906530703,0.159952,93778.0,93776.0,0.023]
[1739906530886,0.01671169,93784.0,93777.0,0.039673]
[1739906531092,0.01671169,93784.0,93778.0,0.0464]
[1739906531317,0.159945,93782.0,93779.0,0.023]
[1739906531511,0.08660576,93783.0,93781.0,0.023]
[1739906531873,0.159945,93782.0,93781.0,0.2538]
[1739906533125,0.159945,93782.0,93781.0,0.173]
[1739906533422,0.0001702,93789.0,93777.0,0.039673]
[1739906533423,0.159952,93778.0,93777.0,0.039673]
[1739906534519,0.16194576,93778.0,93777.0,0.039673]
[1739906534663,0.16194576,93778.0,93777.0,0.07526188]
[1739906536486,0.16194576,93778.0,93777.0,0.09826188]
[1739906537241,0.00199376,93778.0,93777.0,0.09826188]
[1739906537441,0.01687982,93791.0,93778.0,0.173]
[1739906537684,0.01687982,93791.0,93788.0,0.25841579]
[1739906537878,0.00017,93791.0,93788.0,0.44803037]
[1739906539126,0.00017,93791.0,93788.0,0.71046902]
[1739906540318,0.00017,93791.0,93788.0,0.55053402]
[1739906540550,0.00017,93791.0,93788.0,0.71046902]
[1739906541741,0.00017,93791.0,93788.0,0.55053402]
[1739906541941,0.1601032,93789.0,93788.0,0.44803037]
[1739906542334,0.16210047,93789.0,93788.0,0.44803037]
[1739906542956,0.00216747,93789.0,93788.0,0.40063037]
[1739906543610,0.00216747,93789.0,93788.0,0.66306902]
[1739906543817,0.0001702,93789.0,93788.0,0.66306902]
[1739906544342,0.0001702,93789.0,93788.0,1.20876902]
[1739906544753,0.0001702,93789.0,93788.0,1.25436902]
[1739906545928,0.0001702,93789.0,93788.0,1.27436902]
[1739906546131,0.0001702,93789.0,93788.0,1.29436902]
[1739906547769,0.0001702,93789.0,93788.0,1.27436902]
[1739906548167,0.0001702,93789.0,93788.0,1.25436902]
[1739906550525,0.0001702,93789.0,93788.0,1.29436902]
[1739906551472,0.0001702,93789.0,93788.0,1.40686902]
[1739906551871,0.00017,93791.0,93790.0,0.591731]
[1739906552072,0.00017,93791.0,93790.0,0.8197383]
[1739906552367,0.0003408,93818.0,93798.0,0.02]
[1739906552496,0.0003408,93818.0,93817.0,0.41830079]
[1739906552840,0.0003408,93818.0,93817.0,1.02399244]
[1739906553283,0.0003408,93818.0,93817.0,1.18387744]
[1739906553444,0.0003408,93818.0,93817.0,1.24128946]
[1739906553796,0.00047332,93818.0,93817.0,1.24128946]
[1739906554411,0.00047332,93818.0,93817.0,1.08140446]
[1739906554728,0.00047332,93818.0,93817.0,1.24128946]
[1739906555157,0.00047332,93818.0,93817.0,1.08140446]
[1739906556568,0.00047332,93818.0,93817.0,1.24128946]
[1739906558579,0.00047332,93818.0,93817.0,1.26227934]
[1739906563415,0.21152122,93838.0,93818.0,0.023]
[1739906563570,0.0001701,93862.0,93830.0,0.023]
[1739906563767,0.06496,93850.0,93830.0,0.023]
[1739906563966,0.06698223,93850.0,93830.0,0.023]
[1739906564144,0.00202223,93850.0,93830.0,0.023]
[1739906564351,0.00202223,93850.0,93832.0,0.023]
[1739906564621,0.159858,93833.0,93832.0,0.023]
[1739906564987,0.213123,93843.0,93832.0,0.023]
[1739906565250,0.00201751,93833.0,93831.0,0.159861]
[1739906565474,0.159852,93837.0,93829.0,0.15]
[1739906565637,0.0020184,93832.0,93831.0,0.023]
[1739906565834,0.0096308,93851.0,93831.0,0.02406565]
[1739906566000,0.01670021,93838.0,93832.0,0.023]
[1739906566201,0.01670021,93838.0,93837.0,0.173]
[1739906566396,0.01670021,93838.0,93837.0,0.212673]
[1739906566835,0.01653892,93838.0,93837.0,0.212673]
[1739906567133,0.17638792,93838.0,93837.0,0.212673]
[1739906567284,0.17638792,93838.0,93837.0,0.062673]
[1739906567285,0.01653892,93838.0,93837.0,0.062673]
[1739906567629,0.01653892,93838.0,93837.0,0.24695846]
[1739906567987,0.01847164,93838.0,93837.0,0.24695846]
[1739906568193,0.01847164,93838.0,93837.0,0.08710746]
[1739906568402,0.01653892,93838.0,93837.0,0.39695846]
[1739906568843,0.01847164,93838.0,93837.0,0.39695846]
[1739906568998,0.01653892,93838.0,93837.0,0.39695846]
[1739906569649,0.01653892,93838.0,93837.0,0.23710746]
[1739906570080,0.01847287,93838.0,93837.0,0.23710746]
[1739906570508,0.01653892,93838.0,93837.0,0.23710746]
[1739906570722,0.01644564,93838.0,93837.0,0.23710746]
[1739906570923,0.01838097,93838.0,93837.0,0.23710746]
[1739906571540,0.01838097,93838.0,93837.0,0.189673]
[1739906571735,0.01838097,93838.0,93837.0,0.039673]
[1739906571736,0.17822997,93838.0,93837.0,0.039673]
[1739906572167,0.16178433,93838.0,93837.0,0.039673]
[1739906574880,0.00193533,93838.0,93819.0,0.023]
[1739906575095,0.159872,93825.0,93821.0,0.023]
[1739906575411,0.00193858,93837.0,93820.0,0.023]
[1739906575614,0.00193858,93837.0,93820.0,0.01180998]
[1739906575615,0.159878,93821.0,93820.0,0.01180998]
[1739906575992,0.16181236,93821.0,93820.0,0.01180998]
[1739906576393,0.17851538,93821.0,93820.0,0.05148298]
[1739906578622,0.17851538,93821.0,93820.0,0.04049256]
[1739906578978,0.17851538,93821.0,93820.0,0.039673]
[1739906580537,0.26121538,93821.0,93820.0,0.039673]
[1739906580747,0.159918,93798.0,93789.0,0.585373]
[1739906580947,0.213174,93820.0,93791.0,0.023]
[1739906581170,0.159913,93801.0,93793.0,0.023]
[1739906581372,0.15992,93797.0,93794.0,0.039673]
[1739906581552,0.159918,93798.0,93794.0,0.039673]
[1739906581953,0.0167058,93813.0,93795.0,0.023]
[1739906581954,0.00192507,93797.0,93795.0,0.023]
[1739906582154,0.00192507,93797.0,93796.0,0.26933803]
[1739906582396,0.159914,93800.0,93797.0,0.173]
[1739906582798,0.213207,93806.0,93797.0,0.173]
[1739906582799,0.01670609,93798.0,93797.0,0.173]
[1739906583057,0.00192547,93799.0,93797.0,0.173]
[1739906583257,0.00192527,93798.0,93797.0,0.173]
[1739906583450,0.00192527,93798.0,93795.0,0.023]
[1739906583588,0.159913,93801.0,93795.0,0.023]
[1739906583793,0.00192527,93798.0,93797.0,0.023]
[1739906583999,0.16184327,93798.0,93797.0,0.023]
[1739906584197,0.159918,93798.0,93797.0,0.023]
[1739906584429,0.159923,93795.0,93794.0,0.189673]
[1739906584632,0.1618458,93795.0,93794.0,0.189673]
[1739906584833,0.1618458,93795.0,93794.0,0.27179913]
[1739906585036,0.1618458,93795.0,93794.0,0.29479913]
[1739906585237,0.0019228,93795.0,93794.0,0.29479913]
[1739906585462,0.159918,93798.0,93795.0,0.023]
[1739906585664,0.159918,93798.0,93797.0,0.023]
[1739906586064,0.17662439,93798.0,93797.0,0.023]
[1739906587926,0.16528411,93800.0,93797.0,0.023]
[1739906588126,0.159919,93798.0,93797.0,0.023]
[1739906588937,0.159919,93798.0,93797.0,0.02334]
[1739906589130,0.159919,93798.0,93797.0,0.10999196]
[1739906589536,0.159918,93798.0,93797.0,0.10999196]
[1739906590089,0.159918,93798.0,93797.0,0.14966496]
[1739906592027,0.159918,93798.0,93797.0,0.063013]
[1739906597220,0.16175739,93798.0,93797.0,0.063013]
[1739906599348,0.00183939,93798.0,93797.0,0.063013]
[1739906599562,0.01670636,93802.0,93797.0,0.16551665]
[1739906599804,0.01670636,93802.0,93801.0,0.41832879]
[1739906599979,0.159885,93817.0,93813.0,0.023]
[1739906600182,0.00017,93821.0,93815.0,0.023]
[1739906600183,0.159883,93819.0,93815.0,0.023]
[1739906600361,0.159884,93818.0,93815.0,0.023]
[1739906600582,0.159884,93818.0,93817.0,0.023]
[1739906600998,0.213174,93820.0,93814.0,0.039673]
[1739906601204,0.159889,93815.0,93814.0,0.039673]
[1739906601825,0.159918,93798.0,93794.0,0.15]
[1739906602029,0.159918,93798.0,93797.0,0.04014552]
[1739906602230,0.159918,93798.0,93797.0,0.06314552]
[1739906602439,0.159916,93800.0,93798.0,0.023]
[1739906602689,0.159916,93799.0,93798.0,0.023]
[1739906602898,0.159916,93799.0,93798.0,0.02931455]
[1739906603474,0.159915,93800.0,93798.0,0.02931455]
[1739906603852,0.159916,93799.0,93798.0,0.02931455]
[1739906604051,0.159913,93801.0,93798.0,0.02931455]
[1739906604256,0.159913,93801.0,93799.0,0.00694601]
[1739906604437,0.159914,93800.0,93799.0,0.02994601]
[1739906604704,0.159914,93800.0,93799.0,0.023]
[1739906604912,0.213175,93820.0,93800.0,0.023]
[1739906605118,0.213175,93820.0,93802.0,0.023]
[1739906605400,0.159909,93803.0,93802.0,0.023]
[1739906606053,0.159911,93802.0,93801.0,0.039673]
[1739906606459,0.239211,93802.0,93801.0,0.039673]
[1739906608054,0.239211,93802.0,93797.0,0.00047252]
[1739906608055,0.1245,93802.0,93797.0,0.00047252]
[1739906608256,0.159918,93798.0,93797.0,0.00047252]
[1739906612136,0.16175156,93798.0,93797.0,0.00047252]
[1739906616092,0.17846004,93798.0,93797.0,0.00047252]
[1739906622997,0.16175156,93798.0,93797.0,0.00047252]
[1739906626137,0.17845976,93798.0,93797.0,0.00047252]
[1739906630447,0.01854176,93798.0,93797.0,0.00047252]
[1739906630645,0.17845976,93798.0,93797.0,0.00047252]
[1739906630962,0.17845976,93798.0,93797.0,0.04845638]
[1739906631134,0.17845976,93798.0,93797.0,0.02347252]
[1739906631746,0.17845976,93798.0,93797.0,0.06314552]
[1739906632898,0.16175156,93798.0,93797.0,0.06314552]
[1739906633964,0.16175156,93798.0,93797.0,0.04014552]
[1739906636012,0.17845888,93798.0,93797.0,0.04014552]
[1739906641625,0.01854088,93798.0,93797.0,0.60356817]
[1739906641818,0.0001702,93800.0,93799.0,0.309916]
[1739906641940,0.0001702,93800.0,93799.0,1.18790844]
[1739906642150,0.0001702,93800.0,93799.0,1.23420844]
[1739906642357,0.0001702,93800.0,93799.0,1.33671209]
[1739906649340,0.0001702,93800.0,93799.0,1.35844207]
[1739906657063,0.01687411,93821.0,93799.0,1.35844207]
[1739906657064,0.01687411,93821.0,93800.0,0.173]
[1739906657268,0.00017,93821.0,93814.0,0.023]
[1739906657435,0.00017,93821.0,93820.0,0.023]
[1739906657630,0.00017,93821.0,93820.0,0.36247085]
[1739906657835,0.00017,93821.0,93820.0,0.52128516]
[1739906658278,0.00017,93821.0,93820.0,0.36140516]
[1739906658450,0.00017,93821.0,93820.0,0.35140516]
[1739906658653,0.00017,93821.0,93820.0,0.51128516]
[1739906659657,0.00017,93821.0,93820.0,1.10328516]
[1739906660475,0.00916023,93831.0,93830.0,0.182863]
[1739906660674,0.00916023,93831.0,93830.0,0.40333486]
[1739906660905,0.00916023,93831.0,93830.0,0.40226935]
[1739906661301,0.00343508,93831.0,93830.0,0.40226935]
[1739906661504,0.0001699,93845.0,93832.0,0.213146]
[1739906661704,0.0001699,93845.0,93842.0,0.213124]
[1739906661985,0.0001699,93845.0,93844.0,0.023]
[1739906662345,0.0001699,93845.0,93844.0,0.182839]
[1739906662582,0.260372,93865.0,93844.0,0.182839]
[1739906662583,3e-08,93862.0,93844.0,0.212673]
[1739906662751,0.09545062,93896.0,93871.0,0.332793]
[1739906662950,0.09545062,93896.0,93883.0,0.02]
[1739906663271,0.0473,93933.0,93905.0,0.309735]
[1739906663480,0.0473,93933.0,93905.0,0.372408]
[1739906663681,0.00040218,93906.0,93905.0,0.4522461]
[1739906663930,0.00040218,93906.0,93905.0,1.10044975]
[1739906664251,0.00040218,93906.0,93905.0,1.19884975]
[1739906664452,0.00040218,93906.0,93905.0,0.94071475]
[1739906664872,0.00040218,93906.0,93905.0,0.39501475]
[1739906665297,0.00040218,93906.0,93905.0,0.94071475]
[1739906665700,0.09560774,93922.0,93905.0,0.94071475]
[1739906665899,0.159681,93937.0,93936.0,0.00169664]
[1739906666103,0.159686,93934.0,93933.0,0.02169664]
[1739906667095,0.159693,93930.0,93928.0,0.00169664]
[1739906667321,0.159695,93929.0,93928.0,0.00169664]
[1739906667801,0.159713,93918.0,93917.0,0.00169664]
[1739906668002,4.42e-05,93934.0,93908.0,0.00169664]
[1739906668003,0.159729,93909.0,93908.0,0.00169664]
[1739906668175,0.159729,93909.0,93908.0,0.02169664]
[1739906668382,0.159729,93909.0,93907.0,0.039673]
[1739906668589,0.212964,93913.0,93899.0,0.00169664]
[1739906668791,0.159742,93901.0,93900.0,0.00169664]
[1739906668928,0.16150164,93901.0,93900.0,0.0804036]
[1739906669753,0.00175964,93901.0,93900.0,0.0804036]
[1739906670008,0.0017388,93901.0,93900.0,0.0804036]
[1739906670176,0.00187133,93901.0,93900.0,0.0804036]
[1739906671332,0.00187133,93901.0,93900.0,0.2534036]
[1739906671639,0.00013253,93901.0,93900.0,0.2534036]
[1739906671860,0.15987453,93901.0,93900.0,0.2534036]
[1739906672069,0.16161333,93901.0,93900.0,0.2534036]
[1739906672272,0.00187133,93901.0,93900.0,0.2534036]
[1739906672898,0.00204153,93901.0,93900.0,0.2534036]
[1739906673281,0.16178353,93901.0,93900.0,0.2930766]
[1739906674078,0.00204153,93901.0,93900.0,0.2930766]
[1739906674478,0.00030273,93901.0,93900.0,0.23436964]
[1739906674689,0.16004473,93901.0,93900.0,0.06136964]
[1739906674902,0.16178353,93901.0,93900.0,0.06136964]
[1739906676128,0.00204153,93901.0,93900.0,0.06136964]
[1739906676292,0.00204153,93901.0,93900.0,0.1220766]
[1739906676496,0.00030273,93901.0,93900.0,0.1220766]
[1739906677202,0.16004473,93901.0,93900.0,0.6220766]
[1739906677405,0.00204153,93901.0,93900.0,0.6220766]
[1739906677684,0.00204153,93901.0,93900.0,0.7950766]
[1739906677851,0.00204153,93901.0,93900.0,0.97758025]
[1739906678052,0.00030273,93901.0,93900.0,0.97758025]
[1739906679078,0.00030273,93901.0,93900.0,1.68302425]
[1739906680413,0.00030273,93901.0,93900.0,1.70302425]
[1739906681810,0.00030273,93901.0,93900.0,1.72302425]
[1739906682265,0.00030273,93901.0,93900.0,1.70302425]
[1739906682494,0.00030273,93901.0,93900.0,1.68132761]
[1739906682676,0.00030273,93901.0,93900.0,1.68302425]
[1739906683150,0.00030273,93901.0,93900.0,1.68132761]
[1739906683347,0.00030273,93901.0,93900.0,1.68302425]
[1739906684520,0.00030273,93901.0,93900.0,1.79552425]
[1739906684751,0.00030273,93901.0,93900.0,1.68302425]
[1739906684924,0.00030273,93901.0,93900.0,1.68336425]
[1739906686451,0.19315906,93931.0,93904.0,0.15]
[1739906686660,0.159678,93939.0,93938.0,0.02]
[1739906687060,0.16143643,93939.0,93938.0,0.02]
[1739906687703,0.16143643,93939.0,93938.0,0.02169664]
[1739906688784,0.00175843,93939.0,93938.0,0.02169664]
[1739906689021,0.425598,93986.0,93938.0,0.02169664]
[1739906689022,0.04913246,93962.0,93952.0,0.02]
[1739906689226,0.00176176,93961.0,93954.0,0.00169664]
[1739906689360,0.159642,93960.0,93959.0,0.00169664]
[1739906689830,0.16140641,93960.0,93959.0,0.00169664]
[1739906692478,0.37426341,93960.0,93959.0,0.00169664]
[1739906693050,0.159647,93957.0,93956.0,0.02169664]
[1739906693502,0.161412,93957.0,93956.0,0.02169664]
[1739906694091,0.161412,93957.0,93956.0,0.00169664]
[1739906694649,0.001765,93957.0,93956.0,0.02169664]
[1739906695035,0.00013246,93962.0,93961.0,0.00169664]
[1739906695274,0.15977146,93962.0,93961.0,0.00169664]
[1739906695684,0.16153744,93962.0,93961.0,0.00169664]
[1739906695887,0.16153744,93962.0,93961.0,0.02169664]
[1739906696089,0.159667,93945.0,93944.0,0.059673]
[1739906696291,0.00189844,93962.0,93953.0,0.02169664]
[1739906696292,0.159652,93954.0,93953.0,0.02169664]
[1739906696488,0.159817,93957.0,93956.0,0.00169664]
[1739906696718,0.00017,93957.0,93956.0,0.02169664]
[1739906696935,0.159817,93957.0,93956.0,0.02169664]
[1739906698045,0.13464298,93959.0,93956.0,0.02169664]
[1739906698245,0.159647,93957.0,93956.0,0.02169664]
[1739906698473,0.00013246,93962.0,93956.0,0.02169664]
[1739906698474,0.00013246,93962.0,93961.0,0.02]
[1739906698679,0.15977146,93962.0,93961.0,0.02169664]
[1739906699056,0.00013246,93962.0,93961.0,0.02169664]
[1739906699868,0.15977146,93962.0,93961.0,0.02169664]
[1739906700041,0.00013246,93962.0,93961.0,0.06136964]
[1739906700250,0.00013246,93962.0,93961.0,0.09265959]
[1739906700453,0.00013246,93962.0,93961.0,0.50586736]
[1739906700616,0.00013246,93962.0,93961.0,1.12880324]
[1739906700816,0.00013246,93962.0,93961.0,0.96916324]
[1739906701468,0.00013246,93962.0,93961.0,0.89086324]
[1739906701670,0.00013246,93962.0,93961.0,0.76835959]
[1739906701880,0.15977146,93962.0,93961.0,0.04136964]
[1739906702154,0.15977146,93962.0,93961.0,0.06136964]
[1739906702346,0.16153933,93962.0,93961.0,0.06136964]
[1739906702589,0.16153933,93962.0,93961.0,0.059673]
[1739906702789,0.16153933,93962.0,93953.0,0.039673]
[1739906702790,0.159652,93954.0,93953.0,0.039673]
[1739906702929,0.159652,93954.0,93953.0,0.04136964]
[1739906703246,0.159667,93945.0,93944.0,0.02169664]
[1739906703448,0.159667,93945.0,93914.0,0.01059377]
[1739906703449,0.21465917,93945.0,93937.0,0.02]
[1739906703654,0.159684,93935.0,93934.0,0.02169664]
[1739906703880,0.159684,93935.0,93934.0,0.00169664]
[1739906704083,0.16144773,93935.0,93934.0,0.00169664]
[1739906704351,0.16144773,93935.0,93933.0,0.00169664]
[1739906704352,0.00176373,93935.0,93933.0,0.00169664]
[1739906704687,0.159698,93927.0,93926.0,0.02]
[1739906704927,0.159698,93927.0,93926.0,0.02169664]
[1739906705102,0.16145653,93927.0,93926.0,0.02169664]
[1739906705331,0.00175853,93927.0,93926.0,0.02169664]
[1739906705482,0.00175853,93927.0,93926.0,0.04469664]
[1739906705690,0.00175853,93927.0,93926.0,0.02169664]
[1739906705691,0.159698,93927.0,93926.0,0.02169664]
[1739906706005,0.16145484,93927.0,93926.0,0.02169664]
[1739906706405,0.00175684,93927.0,93926.0,0.02169664]
[1739906706610,0.159688,93933.0,93926.0,0.02169664]
[1739906706815,0.159693,93931.0,93930.0,0.02469664]
[1739906706997,0.00013238,93933.0,93930.0,0.02469664]
[1739906707199,0.00013238,93933.0,93932.0,0.35438564]
[1739906707547,0.00013238,93933.0,93932.0,0.45350803]
[1739906708275,0.00013238,93933.0,93932.0,0.61319703]
[1739906708448,0.00013238,93933.0,93932.0,0.45350803]
[1739906708985,0.00013238,93933.0,93932.0,0.61319703]
[1739906709363,0.00013238,93933.0,93932.0,0.45350803]
[1739906710247,0.00013238,93933.0,93932.0,0.61319703]
[1739906710938,0.00013238,93933.0,93932.0,0.45350803]
[1739906711536,0.00188433,93933.0,93932.0,0.45350803]
[1739906711735,0.00013238,93933.0,93932.0,0.45350803]
[1739906711912,0.00188433,93933.0,93932.0,0.45350803]
[1739906712119,0.00013238,93933.0,93932.0,0.45350803]
[1739906712499,0.00188433,93933.0,93932.0,0.45350803]
[1739906712703,0.00013238,93933.0,93932.0,0.27260438]
[1739906712904,0.00013238,93933.0,93932.0,0.19469664]
[1739906713107,0.00188551,93933.0,93932.0,0.193]
[1739906713333,0.00013238,93933.0,93932.0,0.19469664]
[1739906714169,0.00188551,93933.0,93932.0,0.19469664]
[1739906714372,0.00013238,93933.0,93932.0,0.19469664]
[1739906714572,0.00188551,93933.0,93932.0,0.22482849]
[1739906714799,0.15982038,93933.0,93932.0,0.20182849]
[1739906715000,0.00013238,93933.0,93932.0,0.20182849]
[1739906715203,0.00188551,93933.0,93932.0,0.22482849]
[1739906715406,0.00013238,93933.0,93932.0,0.22482849]
[1739906715989,0.15982038,93933.0,93932.0,0.22482849]
[1739906716197,0.00188571,93933.0,93932.0,0.22482849]
[1739906716473,0.00013238,93933.0,93932.0,0.22482849]
[1739906716689,0.00013238,93933.0,93932.0,0.48702114]
[1739906716895,0.00188571,93933.0,93932.0,0.48702114]
[1739906717104,0.00013238,93933.0,93932.0,0.48702114]
[1739906717309,0.00013238,93933.0,93932.0,0.32733214]
[1739906719270,0.00013238,93933.0,93932.0,0.22482849]
[1739906719650,0.00188747,93933.0,93932.0,0.22482849]
[1739906720087,0.00188747,93933.0,93932.0,0.22516829]
[1739906720825,0.00188747,93933.0,93932.0,0.32767194]
[1739906721218,0.00013238,93933.0,93932.0,0.32767194]
[1739906721848,0.00013238,93933.0,93932.0,0.61516094]
[1739906722038,0.23549432,93990.0,93961.0,0.02169664]
[1739906722223,0.212831,93971.0,93961.0,0.19469664]
[1739906722433,0.00030226,93962.0,93961.0,0.19576086]
[1739906722636,0.00030226,93962.0,93961.0,0.50975449]
[1739906722849,0.00030226,93962.0,93961.0,0.50869033]
[1739906723870,0.00030226,93962.0,93961.0,0.5304293]
[1739906724621,0.00030226,93962.0,93961.0,0.3707893]
[1739906724799,0.00030226,93962.0,93961.0,0.26828565]
[1739906725304,0.00030226,93962.0,93961.0,0.24654668]
[1739906725505,0.1617085,93962.0,93961.0,0.24654668]
[1739906725729,0.15994126,93962.0,93961.0,0.00169664]
[1739906725863,0.15994126,93962.0,93959.0,0.02169664]
[1739906725864,0.159642,93960.0,93959.0,0.02169664]
[1739906726065,0.159662,93948.0,93947.0,0.04127152]
[1739906726385,0.16142688,93948.0,93947.0,0.02169664]
[1739906726711,0.159674,93941.0,93940.0,0.04151479]
[1739906726940,0.16142688,93948.0,93947.0,0.02169664]
[1739906727141,0.372546,93948.0,93947.0,0.02169664]
[1739906727362,0.372546,93948.0,93947.0,0.00169664]
[1739906727546,0.372546,93948.0,93947.0,0.02169664]
[1739906727753,0.159662,93948.0,93947.0,0.02169664]
[1739906729400,0.159662,93948.0,93933.0,0.15]
[1739906729401,0.22904187,93960.0,93953.0,0.00169664]
[1739906729600,0.15965,93955.0,93954.0,0.00169664]
[1739906729838,0.159657,93951.0,93950.0,0.00169664]
[1739906730510,0.159672,93942.0,93941.0,0.02]
[1739906730711,0.159672,93942.0,93941.0,0.02169664]
[1739906731069,0.22904187,93951.0,93937.0,0.02]
[1739906731314,0.212894,93944.0,93940.0,0.00169664]
[1739906731516,0.159679,93938.0,93937.0,0.02]
[1739906731724,0.159679,93938.0,93932.0,0.0003398]
[1739906731725,0.159688,93933.0,93932.0,0.0003398]
[1739906731922,0.159688,93933.0,93932.0,0.00203644]
[1739906732116,0.16144975,93933.0,93932.0,0.00203644]
[1739906733225,0.16144975,93933.0,93932.0,0.0003398]
[1739906735010,0.13412975,93933.0,93932.0,0.0003398]
[1739906736014,0.13412975,93933.0,93932.0,0.00203644]
[1739906736155,0.00176175,93933.0,93932.0,0.02203644]
[1739906736341,0.16144975,93933.0,93932.0,0.04503644]
[1739906736539,0.159688,93933.0,93932.0,0.04503644]
[1739906736772,0.16144513,93933.0,93932.0,0.04503644]
[1739906738145,0.16144513,93933.0,93932.0,0.00203644]
[1739906738325,0.16144513,93933.0,93932.0,0.0003398]
[1739906746613,0.159742,93901.0,93889.0,0.0818]
[1739906747023,0.159742,93901.0,93900.0,0.00047238]
[1739906747225,0.16141676,93901.0,93900.0,0.00047238]
[1739906753691,0.30781652,93901.0,93900.0,3.8e-07]
[1739906753928,4.38311652,93901.0,93900.0,3.8e-07]
[1739906754058,0.41032017,93901.0,93900.0,3.8e-07]
[1739906754685,0.56032017,93901.0,93900.0,3.8e-07]
[1739906755316,0.16141676,93901.0,93900.0,3.8e-07]
[1739906756848,0.16141676,93901.0,93900.0,0.00034038]
[1739906759571,0.16141676,93901.0,93900.0,0.10334038]
[1739906760353,0.16141676,93901.0,93900.0,0.29914038]
[1739906760354,0.00167476,93901.0,93900.0,0.29914038]
[1739906760701,0.00167476,93901.0,93900.0,0.32905442]
[1739906760816,0.159726,93911.0,93902.0,0.023]
[1739906761033,0.159725,93911.0,93910.0,0.10819656]
[1739906761999,0.159723,93913.0,93911.0,0.173]
[1739906762162,0.212951,93919.0,93911.0,0.173]
[1739906762368,0.159723,93912.0,93911.0,0.19881966]
[1739906762592,0.159723,93912.0,93911.0,0.173]
[1739906764262,0.159725,93911.0,93910.0,0.08519656]
[1739906764463,0.212962,93914.0,93900.0,0.00034038]
[1739906764464,0.159742,93901.0,93900.0,0.00034038]
[1739906774677,0.212983,93905.0,93900.0,0.00034038]
[1739906774903,0.212983,93904.0,93900.0,0.00034038]
[1739906775112,0.159742,93901.0,93900.0,0.00034038]
[1739906776278,0.159702,93901.0,93900.0,0.00034038]
[1739906777261,0.16136848,93901.0,93900.0,0.00034038]
[1739906780797,0.16153868,93901.0,93900.0,0.00034038]
[1739906782262,0.182023,93919.0,93900.0,0.00034038]
[1739906782484,0.16133904,93901.0,93900.0,0.00034038]
[1739906782685,0.159742,93901.0,93900.0,0.00034038]
[1739906782831,0.16133904,93901.0,93900.0,0.00034038]
[1739906786010,0.00159704,93901.0,93900.0,0.09934038]
[1739906786220,0.00159704,93901.0,93900.0,0.11382442]
[1739906786400,0.15286121,93920.0,93901.0,0.023]
[1739906786582,0.159735,93905.0,93904.0,0.08519656]
[1739906787119,0.16126186,93905.0,93904.0,0.08519656]
[1739906788553,0.159739,93903.0,93902.0,0.3246]
[1739906788907,0.16126449,93903.0,93902.0,0.3246]
[1739906789110,0.24128424,93903.0,93902.0,0.3246]
[1739906789354,0.16126449,93903.0,93902.0,0.3246]
[1739906790555,0.16126449,93903.0,93902.0,0.404]
[1739906792128,0.16126449,93903.0,93902.0,0.0794]
[1739906794059,0.159742,93901.0,93900.0,0.00034038]
[1739906794463,0.16126721,93901.0,93900.0,0.00034038]
[1739906796450,0.16126721,93901.0,93900.0,0.00833442]
[1739906796646,0.00152521,93901.0,93900.0,0.00833442]
[1739906796857,0.16126721,93901.0,93900.0,0.00833442]
[1739906797750,0.16126721,93901.0,93900.0,0.00034038]
[1739906797958,0.16006706,93901.0,93900.0,0.00034038]
[1739906798159,0.16121642,93901.0,93900.0,0.00034038]
[1739906802434,0.00147442,93901.0,93900.0,0.00034038]
[1739906802631,0.00147442,93901.0,93900.0,0.06994038]
[1739906802870,0.159741,93902.0,93901.0,0.023]
[1739906803039,0.16121595,93902.0,93901.0,0.023]
[1739906804316,0.159742,93901.0,93900.0,0.00034038]
[1739906804669,0.16121714,93901.0,93900.0,0.00034038]
[1739906814277,0.212987,93903.0,93900.0,0.00034038]
[1739906814453,0.16115568,93901.0,93900.0,0.00034038]
[1739906814652,0.159742,93901.0,93900.0,0.00034038]
[1739906814855,0.16115588,93901.0,93900.0,0.00034038]
[1739906815722,0.16132608,93901.0,93900.0,0.00034038]
[1739906820197,0.16032608,93901.0,93900.0,0.00034038]
[1739906820800,0.159749,93897.0,93896.0,0.10244038]
[1739906821176,0.16116229,93897.0,93896.0,0.10244038]
[1739906823487,0.16116229,93897.0,93896.0,0.10194038]
[1739906825341,0.00141329,93897.0,93896.0,0.10194038]
[1739906825572,0.00141329,93897.0,93896.0,0.35444403]
[1739906825778,0.00021428,93901.0,93897.0,0.173]
[1739906826002,0.00021428,93901.0,93900.0,0.023]
[1739906826482,0.00021428,93901.0,93900.0,0.2544]
[1739906827966,0.00021428,93901.0,93900.0,0.579]
[1739906828923,0.00021428,93901.0,93900.0,0.60005042]
[1739906829124,0.00021428,93901.0,93900.0,0.68058406]
[1739906829742,0.00021428,93901.0,93900.0,0.65953364]
[1739906830489,0.00163034,93901.0,93900.0,0.65953364]
[1739906830696,0.00021428,93901.0,93900.0,0.65953364]
[1739906831494,0.00162877,93901.0,93900.0,0.579]
[1739906831700,0.15995628,93901.0,93900.0,0.579]
[1739906831910,0.00021428,93901.0,93900.0,0.579]
[1739906832104,0.16137273,93901.0,93900.0,0.579]
[1739906832745,0.00163073,93901.0,93900.0,0.579]
[1739906832941,0.16137273,93901.0,93900.0,0.63903779]
[1739906833168,0.16137273,93901.0,93900.0,0.579]
[1739906834078,0.00163073,93901.0,93900.0,0.579]
[1739906834482,0.16137273,93901.0,93900.0,0.579]
[1739906834678,0.00163073,93901.0,93900.0,0.579]